fUST/lending_fUST_20250729
["ID","MTS","AMOUNT","RATE_DAILY","PERIOD"]
[375748581,1753728663570,-4338.21355073,0.00024,3]
[375748583,1753728663579,-160.16142507,0.00024,2]
[375748585,1753728663589,-454.50895927,0.00024,2]
[375748587,1753728663598,-160.0,0.00024,7]
[375748588,1753728663608,-526.58819812,0.00024,7]
[375748590,1753728663618,-840.90880427,0.00024,7]
[375748592,1753728663627,-216.06083566,0.00024,7]
[375748594,1753728663637,-160.0,0.00024,7]
[375748596,1753728663646,-231.34820253,0.00024,7]
[375748598,1753728663655,-160.0,0.00024,7]
[375748600,1753728663665,-752.14,0.00024008,4]
[375748602,1753728663674,-600.0,0.00024042,2]
[375748604,1753728663683,-537.0,0.00024051,2]
[375748606,1753728663693,-600.0,0.00024054,2]
[375748608,1753728663702,-161.0,0.00024055,12]
[375748609,1753728663711,-600.0,0.00024061,2]
[375748611,1753728663720,-266.9,0.00024085,2]
[375748613,1753728663730,-537.0,0.00024087,2]
[375748615,1753728663739,-151.0,0.000241,7]
[375748617,1753728663749,-151.0,0.000241,7]
[375748619,1753728663758,-151.0,0.000241,7]
[375748621,1753728663767,-151.0,0.000241,7]
[375748623,1753728663776,-151.0,0.000241,7]
[375748625,1753728663786,-151.0,0.000241,7]
[375748627,1753728663795,-151.0,0.000241,7]
[375748629,1753728663804,-151.0,0.000241,7]
[375748631,1753728663814,-526.58819812,0.000241,7]
[375748633,1753728663825,-312.16666667,0.000241,7]
[375748634,1753728663834,-12634.73134317,0.000241,7]
[375748636,1753728663843,-422.0,0.000241,2]
[375748638,1753728663855,-752.14,0.00024108,6]
[375748640,1753728663864,-529.63,0.00024109,2]
[375748642,1753728663873,-669.61,0.00024109,2]
[375748644,1753728663883,-4529.8,0.00024109,2]
[375748646,1753728663892,-653.77,0.00024109,2]
[375748648,1753728663901,-460.0,0.00024109,2]
[375748650,1753728663911,-1040.96,0.00024109,2]
[375748652,1753728663920,-737.77,0.00024109,2]
[375748654,1753728663929,-248.39859235,0.00024109,2]
[375748656,1753728663939,-889.54,0.00024109,2]
[375748658,1753728663948,-1631.04,0.00024109,2]
[375748660,1753728663957,-663.68,0.00024109,2]
[375748661,1753728663966,-571.78,0.00024109,2]
[375748663,1753728663975,-500.0,0.00024109,2]
[375748665,1753728663984,-460.0,0.00024109,2]
[375748667,1753728663994,-460.0,0.00024109,2]
[375748669,1753728664006,-2206.83,0.00024109,2]
[375748671,1753728664016,-2652.51,0.00024109,2]
[375748673,1753728664025,-460.0,0.00024109,2]
[375748675,1753728664035,-586.34,0.00024109,2]
[375748677,1753728664046,-2020.25,0.00024109,2]
[375748679,1753728664056,-460.0,0.00024109,2]
[375748681,1753728664066,-721.07,0.00024109,2]
[375748683,1753728664075,-1809.26,0.00024109,2]
[375748685,1753728664086,-578.54,0.00024109,2]
[375748695,1753728664184,-3123.56,0.00024109,2]
[375748697,1753728664195,-502.28,0.00024109,2]
[375748699,1753728664205,-1869.87,0.00024109,2]
[375748701,1753728664214,-460.0,0.00024109,2]
[375748703,1753728664223,-531.60362281,0.00024109,2]
[375748705,1753728664231,-514.36,0.00024109,2]
[375748707,1753728664241,-568.64,0.00024109,2]
[375748709,1753728664250,-713.15,0.00024109,2]
[375748711,1753728664260,-1983.84,0.00024109,2]
[375748713,1753728664269,-1636.44,0.00024109,2]
[375748715,1753728664279,-643.74,0.00024109,2]
[375748717,1753728664288,-510.82,0.00024109,2]
[375748719,1753728664298,-1672.09,0.00024109,2]
[375748721,1753728664307,-730.72,0.00024109,2]
[375748723,1753728664317,-6580.44,0.00024109,2]
[375748725,1753728664327,-605.7,0.00024109,2]
[375748727,1753728664337,-460.0,0.00024109,2]
[375748729,1753728664346,-516.51,0.00024109,2]
[375748730,1753728664356,-726.82,0.00024109,2]
[375748732,1753728664366,-495.6,0.00024154,6]
[375748734,1753728664375,-600.0,0.00024156,2]
[375748736,1753728664385,-1528.51,0.000242,7]
[375748738,1753728664395,-752.14,0.00024208,7]
[375748740,1753728664405,-537.0,0.00024221,2]
[375748742,1753728664414,-537.0,0.00024228,2]
[375748744,1753728664424,-227.64,0.00024237,2]
[375748746,1753728664433,-385.84525188,0.00024239,2]
[375748748,1753728664443,-500.0,0.00024243,2]
[375748750,1753728664453,-860.0,0.00024277,2]
[375748752,1753728664462,-600.0,0.0002428,2]
[375748754,1753728664471,-189.988435,0.00024287,4]
[375748756,1753728664481,-189.988435,0.00024287,6]
[375748758,1753728664491,-189.988435,0.00024299,5]
[375748760,1753728664500,-1000.0,0.000243,2]
[375748762,1753728664509,-13614.55,0.000243,7]
[375748764,1753728664519,-3217.67,0.000243,7]
[375748766,1753728664529,-51814.44,0.000243,2]
[375748768,1753728664538,-752.14,0.00024308,4]
[375748770,1753728664547,-500.0,0.00024317,2]
[375748772,1753728664556,-600.0,0.0002434,2]
[375748774,1753728664565,-1726.444646,0.0002438,5]
[375748776,1753728664574,-151.0,0.00024383,7]
[375748778,1753728664583,-151.0,0.00024383,7]
[375748779,1753728664592,-151.0,0.00024383,7]
[375748781,1753728664602,-323.407544,0.00024383,7]
[375748783,1753728664611,-151.0,0.00024383,7]
[375748785,1753728664620,-529.63,0.00024383,2]
[375748787,1753728664629,-669.61,0.00024383,2]
[375748789,1753728664639,-4529.8,0.00024383,2]
[375748791,1753728664647,-653.77,0.00024383,2]
[375748793,1753728664656,-460.0,0.00024383,2]
[375748794,1753728664665,-1040.96,0.00024383,2]
[375748795,1753728664674,-737.77,0.00024383,2]
[375748796,1753728664683,-889.54,0.00024383,2]
[375748797,1753728664692,-1631.04,0.00024383,2]
[375748798,1753728664702,-663.68,0.00024383,2]
[375748799,1753728664710,-571.78,0.00024383,2]
[375748800,1753728664719,-460.0,0.00024383,2]
[375748801,1753728664729,-380.27116681,0.00024383,2]
[375748802,1753728664738,-2206.83,0.00024383,2]
[375748803,1753728664747,-2652.51,0.00024383,2]
[375748804,1753728664757,-151.716427,0.00024383,7]
[375748805,1753728664766,-460.0,0.00024383,2]
[375748806,1753728664775,-586.34,0.00024383,2]
[375748807,1753728664784,-2020.25,0.00024383,2]
[375748809,1753728664794,-460.0,0.00024383,2]
[375748811,1753728664803,-721.07,0.00024383,2]
[375748813,1753728664812,-1809.26,0.00024383,2]
[375748815,1753728664821,-578.54,0.00024383,2]
[375748817,1753728664830,-3123.56,0.00024383,2]
[375748819,1753728664840,-502.28,0.00024383,2]
[375748821,1753728664851,-1869.87,0.00024383,2]
[375748824,1753728664865,-460.0,0.00024383,2]
[375748826,1753728664884,-514.36,0.00024383,2]
[375748829,1753728664898,-568.64,0.00024383,2]
[375748832,1753728664915,-713.15,0.00024383,2]
[375748835,1753728664933,-1983.84,0.00024383,2]
[375748838,1753728664950,-1636.44,0.00024383,2]
[375748840,1753728664967,-643.74,0.00024383,2]
[375748843,1753728664982,-510.82,0.00024383,2]
[375748845,1753728664999,-1672.09,0.00024383,2]
[375748848,1753728665019,-730.72,0.00024383,2]
[375748851,1753728665033,-6580.44,0.00024383,2]
[375748853,1753728665048,-605.7,0.00024383,2]
[375748856,1753728665068,-506.72564229,0.00024383,2]
[375748859,1753728665085,-516.51,0.00024383,2]
[375748862,1753728665101,-726.82,0.00024383,2]
[375748864,1753728665112,-537.0,0.00024384,2]
[375748867,1753728665129,-1000.0,0.000244,5]
[375748869,1753728665143,-666.797697,0.00024401,2]
[375748872,1753728665156,-752.14,0.00024408,6]
[375748874,1753728665171,-1000.0,0.0002442,5]
[375748876,1753728665182,-3871.6010581,0.00024423,2]
[375748879,1753728665195,-1000.0,0.0002444,5]
[375748881,1753728665208,-1000.0,0.0002446,5]
[375748883,1753728665221,-600.0,0.00024465,2]
[375748886,1753728665234,-1000.0,0.0002448,5]
[375748888,1753728665247,-2005.94100931,0.000245,3]
[375748891,1753728665260,-1177.0,0.000245,30]
[375748893,1753728665274,-35070.42772119,0.000245,10]
[375748895,1753728665287,-1000.0,0.000245,5]
[375748898,1753728665299,-526.58819812,0.000245,10]
[375748900,1753728665312,-312.16666667,0.000245,10]
[375748903,1753728665326,-12634.73134317,0.000245,10]
[375748905,1753728665340,-840.90880427,0.000245,10]
[375748908,1753728665353,-216.06083566,0.000245,10]
[375748910,1753728665367,-160.0,0.000245,10]
[375748912,1753728665380,-231.34820253,0.000245,10]
[375748915,1753728665394,-160.0,0.000245,10]
[375748917,1753728665407,-214.87999826,0.000245,10]
[375748920,1753728665420,-752.14,0.00024508,6]
[375748922,1753728665434,-500.0,0.00024509,2]
[375748925,1753728665447,-1000.0,0.0002452,5]
[375748927,1753728665460,-537.0,0.00024527,2]
[375748930,1753728665474,-495.6,0.00024527,6]
[375748932,1753728665487,-1000.0,0.0002454,5]
[375748934,1753728665498,-1000.0,0.0002456,5]
[375748936,1753728665508,-189.988435,0.00024564,6]
[375748938,1753728665518,-1000.0,0.0002458,5]
[375748940,1753728665527,-537.0,0.00024581,2]
[375748942,1753728665537,-500.0,0.00024588,2]
[375748944,1753728665546,-600.0,0.00024591,2]
[375748946,1753728665555,-2000.0,0.000246,2]
[375748948,1753728665564,-1000.0,0.000246,5]
[375748950,1753728665573,-600.0,0.00024602,2]
[375748952,1753728665582,-537.0,0.00024606,2]
[375748954,1753728665591,-752.14,0.00024608,4]
[375748957,1753728665602,-207.0,0.0002461,11]
[375748959,1753728665611,-812.75693972,0.0002461,2]
[375748961,1753728665621,-500.0,0.00024612,2]
[375748963,1753728665630,-500.0,0.00024616,2]
[375748965,1753728665639,-600.0,0.00024618,2]
[375748967,1753728665648,-600.0,0.00024619,2]
[375748969,1753728665657,-537.0,0.00024631,2]
[375748971,1753728665667,-771.35940047,0.00024657,2]
[375748973,1753728665676,-3085.43760189,0.00024657,2]
[375748975,1753728665685,-6935.29236965,0.00024657,2]
[375748977,1753728665694,-4066.576578,0.00024657,2]
[375748979,1753728665704,-9140.64750319,0.00024657,2]
[375748981,1753728665713,-529.63,0.00024657,2]
[375748983,1753728665722,-669.61,0.00024657,2]
[375748985,1753728665731,-4529.8,0.00024657,2]
[375748987,1753728665741,-653.77,0.00024657,2]
[375748989,1753728665749,-460.0,0.00024657,2]
[375748991,1753728665759,-1040.96,0.00024657,2]
[375748993,1753728665768,-737.77,0.00024657,2]
[375748995,1753728665777,-889.54,0.00024657,2]
[375749020,1753728666011,-1631.04,0.00024657,2]
[375749023,1753728666029,-663.68,0.00024657,2]
[375749026,1753728666041,-571.78,0.00024657,2]
[375749027,1753728666051,-460.0,0.00024657,2]
[375749029,1753728666061,-2206.83,0.00024657,2]
[375749032,1753728666070,-2652.51,0.00024657,2]
[375749034,1753728666080,-604.13570738,0.00024657,2]
[375749036,1753728666090,-586.34,0.00024657,2]
[375749037,1753728666099,-2020.25,0.00024657,2]
[375749039,1753728666108,-303.02160482,0.00024657,2]
[375749041,1753728666118,-721.07,0.00024657,2]
[375749043,1753728666127,-1809.26,0.00024657,2]
[375749045,1753728666136,-578.54,0.00024657,2]
[375749047,1753728666145,-3123.56,0.00024657,2]
[375749049,1753728666154,-502.28,0.00024657,2]
[375749051,1753728666164,-1869.87,0.00024657,2]
[375749053,1753728666173,-460.0,0.00024657,2]
[375749055,1753728666183,-514.36,0.00024657,2]
[375749057,1753728666192,-568.64,0.00024657,2]
[375749059,1753728666201,-713.15,0.00024657,2]
[375749062,1753728666211,-1983.84,0.00024657,2]
[375749064,1753728666220,-1636.44,0.00024657,2]
[375749066,1753728666229,-643.74,0.00024657,2]
[375749068,1753728666238,-510.82,0.00024657,2]
[375749070,1753728666247,-1672.09,0.00024657,2]
[375749072,1753728666257,-730.72,0.00024657,2]
[375749074,1753728666266,-6580.44,0.00024657,2]
[375749076,1753728666275,-605.7,0.00024657,2]
[375749078,1753728666284,-516.51,0.00024657,2]
[375749080,1753728666293,-726.82,0.00024657,2]
[375749082,1753728666302,-41.67046311,0.00024658,2]
[375749085,1753728666322,-307.33639371,0.00024658,2]
[375749087,1753728666332,-289.4870174,0.00024658,2]
[375749089,1753728666341,-151.0,0.00024658,2]
[375749091,1753728666351,-151.0,0.00024658,2]
[375749093,1753728666360,-245.0,0.00024658,2]
[375749095,1753728666368,-151.0,0.00024658,2]
[375749097,1753728666377,-151.0,0.00024658,2]
[375749099,1753728666387,-272.38218103,0.00024658,2]
[375749101,1753728666396,-784.0,0.00024658,2]
[375749103,1753728666405,-151.0,0.00024658,2]
[375749105,1753728666414,-151.0,0.00024658,2]
[375749107,1753728666424,-151.0,0.00024658,2]
[375749109,1753728666434,-151.0,0.00024658,2]
[375749111,1753728666443,-151.0,0.00024658,2]
[375749113,1753728666451,-558.0,0.00024658,2]
[375749115,1753728666460,-151.0,0.00024658,2]
[375749117,1753728666469,-151.0,0.00024658,2]
[375749119,1753728666479,-151.0,0.00024658,2]
[375749121,1753728666488,-151.0,0.00024658,2]
[375749123,1753728666497,-500.0,0.00024658,2]
[375749125,1753728666507,-151.0,0.00024658,2]
[375749127,1753728666516,-151.0,0.00024658,2]
[375749129,1753728666525,-500.0,0.00024658,2]
[375749131,1753728666535,-199.04713453,0.00024658,2]
[375749132,1753728666544,-151.0,0.00024658,2]
[375749135,1753728666553,-151.0,0.00024658,2]
[375749136,1753728666562,-151.0,0.00024658,2]
[375749139,1753728666571,-271.38457742,0.00024658,2]
[375749141,1753728666580,-151.0,0.00024658,2]
[375749142,1753728666590,-151.0,0.00024658,2]
[375749145,1753728666599,-537.0,0.00024664,2]
[375749147,1753728666610,-227.64,0.00024671,2]
[375749149,1753728666619,-293.85068442,0.00024684,2]
[375749151,1753728666628,-600.0,0.00024687,2]
[375749153,1753728666638,-189.988435,0.00024692,5]
[375749155,1753728666647,-156.143482,0.00024692,5]
[375749157,1753728666656,-163.255369,0.00024692,5]
[375749158,1753728666665,-537.0,0.00024695,2]
[375749160,1753728666675,-500.0,0.00024698,2]
[375749162,1753728666683,-67.68992198,0.00024705,2]
[375749171,1753728666757,-460.0,0.00021917,2]
[375749173,1753728666766,-460.0,0.00022191,2]
[375749175,1753728666776,-892.16,0.00023835,2]
[375749177,1753728666785,-892.16,0.00024109,2]
[375749179,1753728666794,-892.16,0.00024383,2]
[375749181,1753728666803,-892.16,0.00024657,2]
[375749183,1753728666812,-532.31007802,0.00024705,2]
[375749185,1753728666821,-752.14,0.00024708,7]
[375749187,1753728666831,-500.0,0.00024726,2]
[375749189,1753728666841,-537.0,0.00024734,2]
[375749191,1753728666851,-537.0,0.00024739,2]
[375749193,1753728666860,-153.0,0.0002474,2]
[375749195,1753728666869,-153.0,0.0002474,2]
[375749197,1753728666878,-153.0,0.0002474,2]
[375749199,1753728666887,-332.605257,0.00024744,7]
[375749201,1753728666896,-332.605257,0.00024744,7]
[375749203,1753728666905,-600.0,0.00024749,2]
[375749205,1753728666915,-500.0,0.00024761,2]
[375749206,1753728666924,-153.0,0.00024767,2]
[375749208,1753728666933,-153.0,0.00024767,2]
[375749211,1753728666944,-600.0,0.00024788,2]
[375749213,1753728666953,-537.0,0.00024791,2]
[375749215,1753728666963,-177.93,0.00024792,2]
[375749217,1753728666972,-194.75921395,0.00024793,2]
[375749218,1753728666981,-153.0,0.00024795,2]
[375749220,1753728666990,-153.0,0.00024795,2]
[375749222,1753728666999,-153.0,0.00024795,2]
[375749224,1753728667014,-151.0,0.000248,7]
[375749226,1753728667023,-2000.0,0.000248,2]
[375749228,1753728667032,-2000.0,0.000248,2]
[375749230,1753728667041,-2000.0,0.000248,2]
[375749232,1753728667051,-204.794711,0.000248,7]
[375749234,1753728667060,-151.0,0.000248,7]
[375749236,1753728667070,-151.0,0.000248,7]
[375749238,1753728667081,-151.0,0.000248,7]
[375749240,1753728667090,-4897.21548304,0.000248,7]
[375749262,1753728667312,-2754.43864346,0.00019173,2]
[375751096,1753728707273,155.07457059,0.00018506,2]
[375751097,1753728708279,10000.0,0.00018589,2]
[375751098,1753728724242,5000.0,0.0001901,2]
[375751099,1753728740349,5000.0,0.0001901,2]
[375751100,1753728755546,5000.0,0.0001901,2]
[375751101,1753728770710,5000.0,0.0001901,2]
[375751102,1753728785882,5000.0,0.0001901,2]
[375751103,1753728801544,4844.92542941,0.0001901,2]
[375751104,1753728801567,155.07457059,0.0001901,2]
[375751105,1753728817222,5000.0,0.0001901,2]
[375751106,1753728832489,5000.0,0.0001901,2]
[375751107,1753728848273,5000.0,0.0001901,2]
[375751108,1753728863438,5000.0,0.0001901,2]
[375751109,1753729006137,150.0,0.00022359,30]
[375751110,1753729008510,572.98226481,0.00018506,2]
[375751111,1753729008978,286.4911324,0.00018603,2]
[375751112,1753729082423,200.78056652,0.00018978,2]
[375751113,1753729085942,150.0,0.00020445,30]
[375751114,1753729086376,150.0,0.00021419,30]
[375751115,1753729086776,150.0,0.00022392,30]
[375751120,1753729165535,150.0,0.00020363,30]
[375751121,1753729165934,150.0,0.00021333,30]
[375751122,1753729166353,150.0,0.00022302,30]
[375751141,1753729244420,150.0,0.00020151,30]
[375751142,1753729244826,150.0,0.00021111,30]
[375751143,1753729245227,150.0,0.0002207,30]
[375751144,1753729266032,388.65178,0.00013699,2]
[375751146,1753729278418,200.78056652,0.00018978,2]
[375751152,1753729313819,229.19290592,0.00018506,2]
[375751153,1753729323512,150.0,0.00019834,30]
[375751154,1753729323926,150.0,0.00020778,30]
[375751155,1753729324633,150.0,0.00021723,30]
[375751156,1753729325067,150.0,0.00022667,30]
[375751158,1753729399282,1421.56694767,0.0001901,2]
[375751159,1753729400905,150.0,0.00019777,30]
[375751160,1753729401387,150.0,0.00020719,30]
[375751161,1753729401787,150.0,0.00021661,30]
[375751162,1753729402216,150.0,0.00022603,30]
[375751169,1753729487497,150.0,0.00019784,30]
[375751170,1753729488509,150.0,0.00020726,30]
[375751171,1753729488961,150.0,0.00021668,30]
[375751172,1753729489394,150.0,0.00022611,30]
[375751173,1753729536133,-395.81847798,0.00019077,2]
[375751174,1753729556086,-84.18152202,0.00019077,2]
[375751175,1753729556108,-529.0,0.00019077,2]
[375751176,1753729556132,-808.38542565,0.00019078,2]
[375751177,1753729566820,150.0,0.00019756,30]
[375751178,1753729567217,150.0,0.00020696,30]
[375751179,1753729567668,150.0,0.00021637,30]
[375751181,1753729615045,211.46068548,0.00018506,2]
[375751183,1753729623016,558.95281985,0.000189,2]
[375751184,1753729625363,577.213106,0.00018175,2]
[375751185,1753729626081,-307.07377444,0.00019073,2]
[375751186,1753729629099,-185.56478374,0.00019073,2]
[375751187,1753729629122,-1757.20144604,0.00019078,2]
[375751188,1753729629303,-2003.68241332,0.00019078,2]
[375751189,1753729641877,150.0,0.00020124,30]
[375751190,1753729642270,150.0,0.00021083,30]
[375751191,1753729642680,150.0,0.00022041,30]
[375751192,1753729643111,150.0,0.00022999,30]
[375751193,1753729651770,15196.85265424,0.00018207,2]
[375751194,1753729651793,9703.14734576,0.00018207,2]
[375751195,1753729692475,2283.5184,0.0001901,2]
[375751196,1753729715889,150.0,0.00020458,30]
[375751198,1753729716301,150.0,0.00021433,30]
[375751199,1753729716694,150.0,0.00022407,30]
[375751209,1753729752083,-300.0,0.00019076,2]
[375751210,1753729752104,-500.0,0.00019077,2]
[375751211,1753729752125,-500.0,0.00019077,2]
[375751212,1753729752147,-500.0,0.00019077,2]
[375751213,1753729752181,-500.0,0.00019077,2]
[375751214,1753729752205,-500.0,0.00019077,2]
[375751215,1753729752228,-500.0,0.00019077,2]
[375751216,1753729752250,-373.58806336,0.00019077,2]
[375751217,1753729752270,-500.0,0.00019077,2]
[375751218,1753729752291,-170.69817088,0.00019077,2]
[375751219,1753729752317,-36082.06086235,0.00019078,2]
[375751220,1753729762098,-71185.30393067,0.00019078,2]
[375751224,1753729790343,150.0,0.00020278,30]
[375751227,1753729802506,10000.0,0.0001829,2]
[375751305,1753729833315,-166.0,0.00019077,2]
[375751306,1753729833327,-489.34799023,0.00019078,2]
[375751307,1753729833337,-5674.95924093,0.00019078,2]
[375751360,1753729838847,-16995.05772944,0.00019078,2]
[375751361,1753729838858,-4859.68634313,0.00019173,2]
[375751362,1753729838867,-460.0,0.00019178,2]
[375751363,1753729838877,-466.61926376,0.00019178,2]
[375751364,1753729838888,-460.0,0.00019178,2]
[375751365,1753729838898,-460.0,0.00019178,2]
[375751366,1753729838908,-460.0,0.00019178,2]
[375751367,1753729838918,-460.0,0.00019178,2]
[375751368,1753729838927,-460.0,0.00019178,2]
[375751369,1753729838937,-470.53770146,0.00019178,2]
[375751370,1753729838947,-460.0,0.00019178,2]
[375751371,1753729838957,-264.91596639,0.00019178,2]
[375751372,1753729838966,-1278.83,0.00019178,2]
[375751373,1753729838976,-460.0,0.00019178,2]
[375751374,1753729838985,-469.36161508,0.00019178,2]
[375751375,1753729838995,-460.0,0.00019178,2]
[375751376,1753729839004,-460.0,0.00019178,2]
[375751377,1753729839013,-460.0,0.00019178,2]
[375751378,1753729839022,-460.0,0.00019178,2]
[375751379,1753729839032,-460.0,0.00019178,2]
[375751380,1753729839042,-460.0,0.00019178,2]
[375751381,1753729839051,-460.0,0.00019178,2]
[375751382,1753729839061,-460.0,0.00019178,2]
[375751383,1753729839072,-460.0,0.00019178,2]
[375751384,1753729839081,-460.0,0.00019178,2]
[375751385,1753729839092,-460.0,0.00019178,2]
[375751386,1753729839101,-460.0,0.00019178,2]
[375751387,1753729839110,-460.0,0.00019178,2]
[375751388,1753729839119,-460.0,0.00019178,2]
[375751389,1753729839129,-460.0,0.00019178,2]
[375751390,1753729839139,-460.0,0.00019178,2]
[375751391,1753729839149,-460.0,0.00019178,2]
[375751392,1753729839158,-460.0,0.00019178,2]
[375751393,1753729839168,-460.0,0.00019178,2]
[375751394,1753729839178,-460.0,0.00019178,2]
[375751395,1753729839190,-460.0,0.00019178,2]
[375751396,1753729839199,-460.0,0.00019178,2]
[375751397,1753729839209,-460.0,0.00019178,2]
[375751398,1753729839219,-460.0,0.00019178,2]
[375751399,1753729839228,-460.0,0.00019178,2]
[375751400,1753729839238,-460.0,0.00019178,2]
[375751401,1753729839249,-460.0,0.00019178,2]
[375751402,1753729839258,-460.0,0.00019178,2]
[375751403,1753729839268,-472.91618373,0.00019178,2]
[375751404,1753729839277,-460.0,0.00019178,2]
[375751405,1753729839287,-460.0,0.00019178,2]
[375751406,1753729839297,-460.0,0.00019178,2]
[375751407,1753729839306,-460.0,0.00019178,2]
[375751408,1753729839320,-460.0,0.00019178,2]
[375751409,1753729839330,-877.75,0.00019178,2]
[375751410,1753729839339,-460.0,0.00019178,2]
[375751411,1753729839349,-624.57,0.00019178,2]
[375751412,1753729839359,-460.0,0.00019178,2]
[375751413,1753729839368,-455.0,0.00019178,2]
[375751414,1753729839377,-460.0,0.00019178,2]
[375751415,1753729839388,-460.0,0.00019178,2]
[375751416,1753729839398,-460.0,0.00019178,2]
[375751417,1753729839407,-472.49,0.00019178,2]
[375751418,1753729839416,-460.0,0.00019178,2]
[375751419,1753729839426,-460.0,0.00019178,2]
[375751420,1753729839435,-460.0,0.00019178,2]
[375751421,1753729839445,-460.0,0.00019178,2]
[375751422,1753729839454,-460.0,0.00019178,2]
[375751423,1753729839463,-460.0,0.00019178,2]
[375751424,1753729839472,-460.0,0.00019178,2]
[375751425,1753729839481,-460.0,0.00019178,2]
[375751426,1753729839490,-460.0,0.00019178,2]
[375751427,1753729839499,-460.0,0.00019178,2]
[375751428,1753729839508,-460.0,0.00019178,2]
[375751429,1753729839517,-203.80528417,0.00019178,2]
[375751430,1753729839527,-460.0,0.00019178,2]
[375751431,1753729839536,-460.0,0.00019178,2]
[375751432,1753729839546,-7088.48,0.00019178,2]
[375751433,1753729839555,-460.0,0.00019178,2]
[375751434,1753729839565,-460.0,0.00019178,2]
[375751435,1753729839575,-460.0,0.00019178,2]
[375751436,1753729839584,-460.0,0.00019178,2]
[375751437,1753729839593,-175.12396712,0.00019178,2]
[375751438,1753729839602,-460.0,0.00019178,2]
[375751439,1753729839611,-460.0,0.00019178,2]
[375751440,1753729839621,-716.38,0.00019178,2]
[375751441,1753729839630,-460.0,0.00019178,2]
[375751442,1753729839639,-460.0,0.00019178,2]
[375751443,1753729839648,-460.0,0.00019178,2]
[375751444,1753729839657,-460.0,0.00019178,2]
[375751445,1753729839666,-460.0,0.00019178,2]
[375751446,1753729839675,-961.79,0.00019178,2]
[375751447,1753729839685,-460.0,0.00019178,2]
[375751448,1753729839694,-460.0,0.00019178,2]
[375751449,1753729839703,-460.0,0.00019178,2]
[375751450,1753729839712,-460.0,0.00019178,2]
[375751451,1753729839721,-460.0,0.00019178,2]
[375751452,1753729839731,-460.0,0.00019178,2]
[375751453,1753729839740,-460.0,0.00019178,2]
[375751454,1753729839749,-460.0,0.00019178,2]
[375751455,1753729839759,-460.0,0.00019178,2]
[375751456,1753729839768,-460.0,0.00019178,2]
[375751457,1753729839777,-460.0,0.00019178,2]
[375751458,1753729839786,-460.0,0.00019178,2]
[375751459,1753729839795,-460.0,0.00019178,2]
[375751460,1753729839804,-572.62295176,0.00019178,2]
[375751461,1753729839813,-224.69505913,0.00019178,2]
[375751462,1753729839822,-460.0,0.00019178,2]
[375751463,1753729839831,-460.0,0.00019178,2]
[375751464,1753729839840,-460.0,0.00019178,2]
[375751465,1753729839849,-460.0,0.00019178,2]
[375751466,1753729839859,-460.0,0.00019178,2]